bitfinex/quotes_SOLUSD_20230120
["timestamp","ask_amount","ask_price","bid_price","bid_amount"]
[1674243674444,10.0,23.23,23.206,10.0]
[1674243674671,10.0,23.23,23.212,20.53007577]
[1674243675203,10.0,23.23,23.213,20.0]
[1674243675723,10.0,23.23,23.208,20.53007577]
[1674243675938,10.0,23.228,23.208,20.53007577]
[1674243676138,32.3,23.227,23.208,20.53007577]
[1674243676548,10.0,23.226,23.208,20.53007577]
[1674243676978,10.0,23.226,23.204,10.0]
[1674243677198,32.3,23.225,23.204,10.0]
[1674243677513,10.0,23.224,23.201,10.0]
[1674243677723,32.3,23.223,23.199,20.53007577]
[1674243678249,10.0,23.222,23.199,20.53007577]
[1674243678567,10.0,23.222,23.198,10.0]
[1674243678568,10.0,23.22,23.198,10.0]
[1674243678775,10.0,23.22,23.194,62.87007577]
[1674243679089,32.31,23.219,23.194,10.0]
[1674243679302,10.0,23.218,23.19,62.88007577]
[1674243679514,10.0,23.218,23.19,10.0]
[1674243679515,10.0,23.216,23.19,10.0]
[1674243679699,32.31,23.215,23.19,10.0]
[1674243680126,10.0,23.214,23.189,52.88007577]
[1674243680343,32.32,23.213,23.184,32.36]
[1674243680550,32.32,23.213,23.183,10.0]
[1674243680766,0.96,23.212,23.181,20.53007577]
[1674243680977,32.32,23.211,23.175,32.37]
[1674243681189,10.0,23.21,23.178,10.0]
[1674243681512,33.28,23.209,23.178,30.53007577]
[1674243682031,20.0,23.208,23.178,10.0]
[1674243682244,42.33,23.207,23.172,10.0]
[1674243682455,20.0,23.206,23.173,32.37]
[1674243682657,32.33,23.205,23.179,20.53007577]
[1674243682854,10.0,23.205,23.18,10.0]
[1674243683191,10.0,23.205,23.18,30.53007577]
[1674243683506,32.33,23.204,23.181,21.49007577]
[1674243683711,109.6782,23.21,23.182,5.32864909]
[1674243683930,109.6782,23.21,23.19,25.28]
[1674243684137,109.6782,23.21,23.191,63.31]
[1674243684336,150.9505,23.219,23.192,7.68859115]
[1674243684550,118.6405,23.219,23.193,33.3]
[1674243684870,128.6405,23.219,23.195,10.0]
[1674243685082,128.6405,23.219,23.196,0.96]
[1674243685499,128.6405,23.219,23.196,21.49007577]
[1674243685685,10.0,23.23,23.197,20.0]
[1674243685686,32.3,23.227,23.197,20.0]
[1674243685905,32.3,23.227,23.201,5.86830515]
[1674243686111,10.0,23.226,23.203,10.0]
[1674243686341,10.0,23.226,23.204,53.29]
[1674243686549,10.0,23.226,23.204,73.82007577]
[1674243686740,10.0,23.226,23.205,30.53007577]
[1674243686951,10.0,23.226,23.206,0.96]
[1674243687160,10.0,23.226,23.206,21.49007577]
[1674243687392,10.0,23.226,23.207,30.53007577]
[1674243687582,10.0,23.226,23.208,0.96]
[1674243687802,32.3,23.228,23.208,21.49007577]
[1674243688009,10.0,23.23,23.21,10.0]
[1674243688213,10.0,23.23,23.211,20.96]
[1674243688557,10.0,23.23,23.212,20.53007577]
[1674243688752,10.0,23.23,23.214,10.0]
[1674243689164,10.0,23.23,23.215,41.49007577]
[1674243689577,10.0,23.23,23.216,20.53007577]
[1674243689795,10.0,23.23,23.217,0.96]
[1674243690532,10.0,23.23,23.216,20.53007577]
[1674243690771,42.29,23.23,23.201,32.33]
[1674243690966,42.29,23.23,23.205,10.0]
[1674243691404,42.29,23.23,23.205,8.5]
[1674243692540,42.29,23.23,23.206,0.96]
[1674243693511,42.29,23.23,23.205,8.5]
[1674243693917,10.0,23.229,23.205,8.5]
[1674243694135,33.26,23.228,23.202,10.0]
[1674243694338,10.0,23.227,23.205,20.0]
[1674243694542,32.3,23.226,23.205,20.0]
[1674243694754,10.0,23.225,23.205,20.0]
[1674243694961,32.3,23.224,23.205,20.0]
[1674243695172,32.3,23.224,23.206,10.0]
[1674243695389,42.29,23.233,23.207,20.0]
[1674243695598,115.7327,23.232,23.21,25.2]
[1674243695799,115.7327,23.232,23.211,25.86151484]
[1674243696003,32.28,23.237,23.213,5.0878967]
[1674243696238,42.28,23.24,23.214,20.96]
[1674243696553,42.28,23.24,23.216,10.0]
[1674243696740,42.28,23.24,23.217,0.96]
[1674243696951,42.28,23.24,23.218,10.0]
[1674243697188,42.28,23.24,23.219,0.96]
[1674243698010,32.28,23.24,23.22,25.28]
[1674243698222,42.28,23.242,23.221,10.96]
[1674243698656,10.0,23.242,23.221,10.96]
[1674243698973,10.0,23.25,23.221,10.96]
[1674243699167,10.0,23.25,23.222,40.53007577]
[1674243699168,32.28,23.242,23.222,40.53007577]
[1674243699386,10.0,23.248,23.223,10.96]
[1674243699592,32.27,23.247,23.224,20.0]
[1674243699800,32.27,23.247,23.225,0.96]
[1674243700012,10.0,23.246,23.225,10.96]
[1674243700221,32.27,23.245,23.225,10.96]
[1674243700652,10.0,23.244,23.225,10.96]
[1674243700857,10.0,23.24,23.225,10.96]
[1674243701181,10.0,23.24,23.224,20.0]
[1674243701492,10.0,23.24,23.223,10.0]
[1674243701703,10.0,23.24,23.224,20.0]
[1674243702946,10.0,23.24,23.225,0.96]
[1674243703164,10.0,23.24,23.224,20.0]
[1674243704432,10.0,23.24,23.218,10.0]
[1674243704646,10.0,23.24,23.211,10.0]
[1674243704647,32.28,23.239,23.215,10.0]
[1674243705065,33.97562402,23.241,23.22,25.04]
[1674243705396,33.97562402,23.241,23.221,20.0]
[1674243705572,10.0,23.24,23.222,10.0]
[1674243705782,10.0,23.24,23.224,10.0]
[1674243706114,33.97562402,23.241,23.225,0.96]
[1674243706322,33.97562402,23.241,23.226,10.0]
[1674243706514,33.97562402,23.241,23.227,0.96]
[1674243706955,33.97562402,23.241,23.228,20.53007577]
[1674243707163,33.97562402,23.241,23.229,10.96]
[1674243707582,33.97562402,23.241,23.23,41.06015154]
[1674243707777,33.97562402,23.241,23.231,0.96]
[1674243708323,33.97562402,23.241,23.232,20.53007577]
[1674243708522,33.97562402,23.241,23.233,0.96]
[1674243708847,33.97562402,23.241,23.234,30.53007577]
[1674243709055,32.25,23.263,23.236,10.0]
[1674243709264,10.0,23.262,23.237,0.96]
[1674243709492,10.0,23.26,23.237,21.49007577]
[1674243709715,10.0,23.264,23.237,21.49007577]
[1674243709716,32.25,23.259,23.241,4.18193945]
[1674243709900,32.24,23.268,23.242,15.16755]
[1674243710236,17.203786,23.27,23.26,25.28]
[1674243710451,17.203786,23.27,23.261,0.96]
[1674243710640,17.203786,23.27,23.261,125.78328886]
[1674243710965,32.22,23.285,23.262,133.68653036]
[1674243711155,10.0,23.284,23.263,30.96]
[1674243711369,32.2,23.296,23.264,7.13411158]
[1674243711582,32.2,23.296,23.27,25.28]
[1674243711797,10.0,23.295,23.271,20.96]
[1674243712028,32.2,23.294,23.271,20.96]
[1674243712220,10.0,23.293,23.273,10.0]
[1674243712432,10.0,23.293,23.274,20.96]
[1674243712634,10.0,23.295,23.275,10.0]
[1674243712844,10.0,23.295,23.276,0.96]
[1674243713076,10.0,23.293,23.276,0.96]
[1674243713275,10.0,23.293,23.276,21.49007577]
[1674243713492,10.0,23.293,23.277,20.53007577]
[1674243713697,32.21,23.292,23.276,0.96]
[1674243713910,10.0,23.293,23.276,20.53007577]
[1674243714237,10.0,23.293,23.277,0.96]
[1674243714416,10.0,23.295,23.28,23.26]
[1674243714631,10.0,23.295,23.281,0.96]
[1674243714848,32.2,23.294,23.281,0.96]
[1674243715076,10.0,23.293,23.281,0.96]
[1674243715255,10.0,23.293,23.279,10.96]
[1674243715712,42.2,23.296,23.281,10.0]
[1674243716013,10.0,23.297,23.281,10.0]
[1674243716206,10.0,23.297,23.282,46.90815588]
[1674243716413,32.2,23.296,23.282,46.90815588]
[1674243716839,10.0,23.295,23.28,23.26]
[1674243717046,10.0,23.295,23.276,50.31856598]
[1674243717266,10.0,23.295,23.279,46.90815588]
[1674243717481,10.0,23.295,23.271,10.0]
[1674243717685,32.2,23.294,23.273,10.0]
[1674243717912,10.0,23.293,23.274,20.0]
[1674243718839,32.21,23.292,23.273,10.0]
[1674243719048,10.0,23.295,23.274,20.0]
[1674243719049,32.2,23.294,23.274,20.0]
[1674243719253,10.0,23.293,23.275,10.0]
[1674243719474,10.0,23.293,23.266,10.0]
[1674243719686,32.21,23.292,23.266,10.0]
[1674243719900,10.0,23.291,23.266,10.0]
[1674243720111,32.21,23.29,23.266,10.0]
[1674243720426,10.0,23.289,23.266,10.0]
[1674243720625,32.21,23.288,23.266,10.0]
[1674243720842,10.0,23.287,23.266,10.0]
[1674243721256,32.22,23.286,23.266,10.0]
[1674243721459,10.0,23.285,23.266,10.0]
[1674243722639,112.5545,23.287,23.267,6.67313758]
[1674243722952,10.0,23.291,23.27,25.14]
[1674243723161,10.0,23.291,23.272,10.0]
[1674243723380,32.21,23.29,23.266,10.0]
[1674243723560,10.0,23.289,23.266,10.0]
[1674243723777,32.21,23.288,23.266,10.0]
[1674243724107,10.0,23.287,23.266,10.0]
[1674243724420,10.0,23.287,23.261,62.78007577]
[1674243724637,10.0,23.285,23.261,62.78007577]
[1674243724833,10.0,23.285,23.261,30.53007577]
[1674243725050,10.0,23.285,23.261,10.0]
[1674243725882,42.22,23.286,23.261,10.0]
[1674243725883,32.22,23.284,23.262,17.63305017]
[1674243726092,10.0,23.286,23.264,20.53007577]
[1674243726405,10.0,23.286,23.266,10.0]
[1674243727032,10.0,23.286,23.267,0.96]
[1674243728511,115.357,23.287,23.267,0.96]
[1674243728722,115.357,23.287,23.268,30.53007577]
[1674243728942,115.357,23.287,23.271,10.0]
[1674243729260,115.357,23.287,23.272,20.0]
[1674243729449,115.357,23.287,23.273,10.96]
[1674243729655,115.357,23.287,23.274,20.0]
[1674243729981,115.357,23.287,23.275,10.96]
[1674243730725,115.357,23.287,23.275,31.49007577]
[1674243730919,115.357,23.287,23.27,25.14]
[1674243731132,42.22,23.286,23.26,35.14]
[1674243731341,32.22,23.286,23.265,10.0]
[1674243731557,115.357,23.287,23.265,10.0]
[1674243731768,32.21,23.293,23.271,5.25347375]
[1674243731977,32.21,23.293,23.27,25.14]
[1674243731978,42.2,23.295,23.27,25.14]
[1674243732193,42.2,23.295,23.271,30.53007577]
[1674243733021,42.2,23.295,23.272,20.0]
[1674243733232,42.2,23.295,23.273,10.0]
[1674243733571,10.0,23.293,23.266,4.20321]
[1674243733787,32.21,23.292,23.26,10.0]
[1674243734003,10.0,23.291,23.26,29.8569827]
[1674243734184,10.0,23.289,23.26,29.8569827]
[1674243734393,32.21,23.288,23.26,29.8569827]
[1674243734620,10.0,23.287,23.26,10.0]
[1674243734814,10.0,23.285,23.26,10.0]
[1674243735024,32.22,23.284,23.26,10.0]
[1674243735229,10.0,23.283,23.26,10.0]
[1674243735451,32.22,23.282,23.251,42.26]
[1674243735657,32.22,23.282,23.251,10.0]
[1674243735658,10.0,23.281,23.251,10.0]
[1674243735880,32.22,23.28,23.251,10.0]
[1674243736077,10.0,23.279,23.251,10.0]
[1674243736408,32.23,23.278,23.248,10.0]
[1674243736728,10.0,23.277,23.248,10.0]
[1674243736939,10.0,23.275,23.248,29.8569827]
[1674243737133,32.23,23.274,23.248,9.737]
[1674243737346,10.0,23.273,23.248,9.737]
[1674243737552,10.0,23.271,23.246,10.0]
[1674243737764,32.24,23.27,23.246,10.0]
[1674243737985,10.0,23.269,23.246,10.0]
[1674243738302,10.0,23.267,23.246,10.0]
[1674243738624,32.24,23.266,23.246,10.0]
[1674243738816,10.0,23.265,23.231,6.05453714]
[1674243739025,32.25,23.264,23.232,10.0]
[1674243739232,32.25,23.264,23.233,10.0]
[1674243739233,10.0,23.263,23.233,10.0]
[1674243739452,32.25,23.262,23.233,10.0]
[1674243739870,10.0,23.261,23.241,9.5]
[1674243740064,32.25,23.26,23.241,9.5]
[1674243740492,32.25,23.262,23.241,9.5]
[1674243740703,32.25,23.262,23.242,20.0]
[1674243741021,32.25,23.262,23.233,10.0]
[1674243741226,56.00576951,23.262,23.233,10.0]
[1674243741436,173.96686951,23.262,23.212,36.86742153]
[1674243741674,25.14,23.26,23.213,4.70356447]
[1674243741869,69.25,23.259,23.217,19.8569827]
[1674243742187,10.0,23.258,23.23,25.13]
[1674243742385,32.26,23.257,23.231,10.0]
[1674243742590,32.25,23.26,23.231,39.00805101]
[1674243742800,32.25,23.26,23.232,70.80581588]
[1674243743012,32.25,23.26,23.232,50.80581588]
[1674243743222,32.25,23.26,23.22,25.05]
[1674243743223,20.0,23.259,23.221,32.31]
[1674243743540,10.0,23.257,23.223,19.8569827]
[1674243743869,70.22,23.256,23.223,19.8569827]
[1674243744392,10.0,23.255,23.225,19.8569827]
[1674243744604,32.26,23.254,23.225,19.8569827]
[1674243744817,10.0,23.253,23.226,10.0]
[1674243745147,32.26,23.252,23.227,0.96]
[1674243745537,10.0,23.251,23.227,0.96]
[1674243745760,32.27,23.25,23.227,0.96]
[1674243745965,10.0,23.249,23.227,0.96]
[1674243746176,32.27,23.248,23.226,10.0]
[1674243746390,10.0,23.249,23.226,10.0]
[1674243746720,10.0,23.249,23.226,5.0]
[1674243747033,32.27,23.248,23.227,19.8569827]
[1674243747242,10.0,23.252,23.229,10.0]
[1674243747644,10.0,23.252,23.231,10.0]
[1674243747853,32.26,23.253,23.232,0.96]
[1674243748062,114.593,23.254,23.232,20.8169827]
[1674243748293,25.06,23.28,23.234,4.52685322]
[1674243748294,150.2111,23.262,23.234,4.52685322]
[1674243748486,117.9611,23.262,23.235,43.25]
[1674243748697,117.9611,23.262,23.236,20.0]
[1674243748916,117.9611,23.262,23.237,33.24]
[1674243749239,111.1967,23.265,23.241,10.0]
[1674243749433,111.1967,23.265,23.242,37.44755]
[1674243749646,111.1967,23.265,23.244,7.86139562]
[1674243749843,111.1967,23.265,23.251,10.0]
[1674243750057,111.1967,23.265,23.253,10.0]
[1674243750273,111.1967,23.265,23.254,20.96]
[1674243750500,111.1967,23.265,23.255,10.0]
[1674243751003,111.1967,23.265,23.256,0.96]
[1674243751852,32.23,23.273,23.256,0.96]
[1674243752057,110.9139,23.274,23.256,0.96]
[1674243752275,32.23,23.278,23.256,0.96]
[1674243752478,147.0882,23.282,23.256,0.96]
[1674243752699,32.23,23.278,23.256,0.96]
[1674243753321,10.0,23.275,23.256,0.96]
[1674243753543,10.0,23.275,23.255,10.0]
[1674243754177,42.23,23.275,23.254,20.0]
[1674243754394,10.0,23.274,23.254,20.0]
[1674243754580,32.23,23.273,23.254,20.0]
[1674243754793,10.0,23.272,23.252,20.0]
[1674243754996,10.0,23.272,23.253,10.0]
[1674243754997,32.24,23.271,23.253,10.0]
[1674243755217,32.24,23.271,23.254,20.0]
[1674243755429,10.0,23.274,23.255,10.0]
[1674243755430,32.23,23.273,23.255,10.0]
[1674243755651,32.23,23.273,23.255,29.8569827]
[1674243755852,32.23,23.274,23.256,19.8569827]
[1674243756070,10.0,23.277,23.257,10.96]
[1674243756383,10.0,23.275,23.258,19.8569827]
[1674243756579,42.23,23.275,23.259,0.96]
[1674243756793,10.0,23.275,23.257,10.0]
[1674243757004,42.23,23.275,23.258,0.96]
[1674243757215,143.4267,23.276,23.259,19.8569827]
[1674243757426,111.1967,23.276,23.26,10.96]
[1674243757642,10.0,23.275,23.26,10.96]
[1674243757847,111.1967,23.276,23.26,10.96]
[1674243758272,10.0,23.275,23.26,10.96]
[1674243759741,111.1967,23.276,23.261,39.8569827]
[1674243760068,42.22,23.284,23.263,10.0]
[1674243760259,42.22,23.284,23.264,20.96]
[1674243760477,32.22,23.284,23.265,10.0]
[1674243760684,147.5355,23.296,23.266,0.96]
[1674243760893,10.0,23.295,23.267,10.0]
[1674243761118,10.0,23.295,23.268,0.96]
[1674243761119,32.2,23.294,23.268,0.96]
[1674243761320,10.0,23.293,23.268,0.96]
[1674243761652,10.0,23.291,23.268,20.8169827]
[1674243761962,32.21,23.29,23.269,10.0]
[1674243762172,10.0,23.289,23.27,0.96]
[1674243762403,32.21,23.288,23.27,20.8169827]
[1674243762699,32.21,23.288,23.271,19.8569827]
[1674243762911,42.22,23.286,23.271,19.8569827]
[1674243763321,42.22,23.286,23.272,0.96]
[1674243763530,10.0,23.286,23.272,0.96]
[1674243763735,10.0,23.286,23.271,19.8569827]
[1674243763948,10.0,23.286,23.272,0.96]
[1674243764160,10.0,23.286,23.27,19.8569827]
[1674243764381,42.22,23.286,23.27,19.8569827]
[1674243764590,42.22,23.286,23.269,10.0]
[1674243765113,42.22,23.286,23.262,10.0]
[1674243765311,10.0,23.285,23.264,20.0]
[1674243765521,10.0,23.283,23.264,20.0]
[1674243765733,32.22,23.282,23.263,20.0]
[1674243765953,10.0,23.281,23.263,20.0]
[1674243766166,32.22,23.28,23.263,20.0]
[1674243766375,10.0,23.279,23.263,20.0]
[1674243766589,10.0,23.279,23.261,20.0]
[1674243766802,10.0,23.277,23.261,20.0]
[1674243767199,10.0,23.277,23.252,10.0]
[1674243767419,32.23,23.276,23.252,10.0]
[1674243767638,10.0,23.275,23.252,10.0]
[1674243768050,32.23,23.274,23.252,10.0]
[1674243768279,10.0,23.273,23.252,10.0]
[1674243768477,10.0,23.271,23.252,10.0]
[1674243769411,10.0,23.271,23.25,10.0]
[1674243769847,10.0,23.271,23.246,10.0]
[1674243770048,32.24,23.27,23.246,10.0]
[1674243770263,10.96,23.269,23.238,10.0]
[1674243770486,32.24,23.268,23.244,19.8569827]
[1674243770895,32.24,23.27,23.244,19.8569827]
[1674243771099,10.0,23.273,23.246,10.0]
[1674243771523,10.0,23.273,23.247,39.7139654]
[1674243771741,32.23,23.272,23.247,19.8569827]
[1674243771961,33.19,23.272,23.24,25.14]
[1674243772274,33.19,23.272,23.238,10.0]
[1674243772275,33.75576951,23.271,23.238,10.0]
[1674243772588,10.0,23.269,23.238,10.0]
[1674243772800,50.2,23.268,23.238,10.0]
[1674243773111,50.2,23.268,23.232,10.0]
[1674243773112,10.0,23.267,23.232,10.0]
[1674243773321,69.24,23.266,23.237,19.8569827]
[1674243773509,10.96,23.265,23.237,19.8569827]
[1674243773720,69.25,23.264,23.237,19.8569827]
[1674243773936,0.96,23.263,23.237,19.8569827]
[1674243774159,10.0,23.261,23.225,10.0]
[1674243774368,10.0,23.259,23.23,10.0]
[1674243774690,10.0,23.257,23.23,10.0]
[1674243775006,10.0,23.255,23.225,10.0]
[1674243775213,32.26,23.254,23.225,10.0]
[1674243775427,0.96,23.253,23.223,10.0]
[1674243775638,32.26,23.252,23.223,10.0]
[1674243775852,10.96,23.251,23.223,10.0]
[1674243776163,42.27,23.25,23.223,10.0]
[1674243777504,0.96,23.249,23.223,10.0]
[1674243777711,32.27,23.248,23.223,10.0]
[1674243777931,10.0,23.247,23.223,10.0]
[1674243778141,10.0,23.245,23.223,10.0]
[1674243778576,10.0,23.245,23.224,20.0]
[1674243778788,32.27,23.246,23.224,39.8569827]
[1674243778980,10.0,23.248,23.225,10.0]
[1674243779193,32.27,23.247,23.225,10.0]
[1674243779820,10.0,23.246,23.225,10.0]
[1674243780575,268.43,23.254,23.23,23.38]
[1674243780812,268.43,23.254,23.232,10.0]
[1674243780813,236.17,23.254,23.232,10.0]
[1674243781186,236.17,23.254,23.233,37.96]
[1674243781392,236.17,23.254,23.234,10.0]
[1674243781726,32.25,23.264,23.236,10.0]
[1674243781938,10.0,23.263,23.237,17.96]
[1674243782145,32.25,23.262,23.238,10.0]
[1674243782470,10.0,23.263,23.24,23.57]
[1674243782665,10.0,23.263,23.241,37.96]
[1674243782875,10.0,23.263,23.242,10.0]
[1674243783080,10.0,23.263,23.243,37.0]
[1674243783303,32.25,23.262,23.243,17.0]
[1674243783706,10.0,23.261,23.243,17.0]
[1674243783918,10.0,23.259,23.243,17.0]
[1674243785172,10.0,23.263,23.244,40.8169827]
[1674243785383,10.0,23.263,23.245,17.0]
[1674243786020,10.0,23.263,23.246,10.0]
[1674243786227,10.0,23.263,23.247,17.0]
[1674243786872,10.0,23.263,23.248,10.0]
[1674243787201,10.0,23.263,23.249,17.0]
[1674243787727,113.5923,23.265,23.249,17.0]
[1674243787909,113.5923,23.265,23.251,10.0]
[1674243788120,113.5923,23.265,23.252,17.96]
[1674243788536,113.5923,23.265,23.252,17.0]
[1674243788760,10.0,23.264,23.252,17.0]
[1674243789087,10.0,23.264,23.25,23.57]
[1674243789088,10.0,23.264,23.246,10.0]
[1674243789276,10.0,23.264,23.24,23.57]
[1674243789493,10.0,23.262,23.242,10.0]
[1674243789700,10.0,23.262,23.243,20.0]
[1674243790764,10.0,23.262,23.245,10.0]
[1674243790978,10.0,23.262,23.246,17.0]
[1674243791187,10.0,23.262,23.235,32.29]
[1674243791393,33.21,23.261,23.231,42.29]
[1674243791711,10.0,23.26,23.231,42.29]
[1674243791926,10.0,23.258,23.231,42.29]
[1674243792657,10.0,23.258,23.238,10.0]
[1674243792885,10.0,23.258,23.24,10.0]
[1674243793070,10.0,23.258,23.241,17.96]
[1674243793287,10.0,23.258,23.242,10.0]
[1674243793602,115.884,23.26,23.243,17.96]
[1674243793815,123.5923,23.265,23.244,30.0]
[1674243794034,123.5923,23.265,23.245,17.0]
[1674243794221,32.25,23.263,23.245,17.0]
[1674243794640,10.0,23.262,23.245,17.0]
[1674243796854,10.0,23.262,23.246,10.0]
[1674243797073,10.0,23.262,23.247,17.0]
[1674243797389,32.23,23.272,23.25,23.57]
[1674243797576,225.6098,23.276,23.251,37.96]
[1674243797794,225.6098,23.276,23.253,10.0]
[1674243798005,225.6098,23.276,23.254,70.22]
[1674243798439,110.9057,23.276,23.255,19.8569827]
[1674243798657,10.0,23.275,23.261,10.0]
[1674243798851,10.0,23.275,23.26,23.56]
[1674243799064,10.0,23.275,23.261,17.0]
[1674243799997,10.0,23.275,23.262,40.8169827]
[1674243800206,10.0,23.275,23.263,17.0]
[1674243800417,110.9057,23.276,23.264,20.0]
[1674243800645,10.0,23.275,23.265,17.0]
[1674243801481,10.0,23.275,23.26,23.57]
[1674243801696,10.0,23.275,23.261,20.0]
[1674243801909,10.0,23.275,23.261,19.5]
[1674243802226,10.0,23.275,23.262,19.8569827]
[1674243802415,10.0,23.275,23.255,10.0]
[1674243802630,10.0,23.275,23.257,19.8569827]
[1674243802841,10.0,23.275,23.259,10.0]
[1674243803047,10.0,23.275,23.261,10.0]
[1674243803257,10.0,23.275,23.262,17.0]
[1674243803694,110.9057,23.276,23.263,10.0]
[1674243803905,110.9057,23.276,23.264,17.0]
[1674243804341,10.0,23.275,23.261,10.0]
[1674243806104,110.9057,23.276,23.262,19.8569827]
[1674243806319,110.9057,23.276,23.264,10.0]
[1674243806529,110.9057,23.276,23.265,17.0]
[1674243806741,110.9057,23.276,23.266,10.0]
[1674243806960,110.9057,23.276,23.267,17.0]
[1674243807919,10.0,23.275,23.267,17.0]
[1674243808126,10.0,23.275,23.265,17.0]
[1674243808545,10.0,23.275,23.264,10.0]
[1674243808749,10.0,23.275,23.265,20.0]
[1674243810110,10.0,23.275,23.256,10.0]
[1674243810321,10.0,23.275,23.259,29.8569827]
[1674243813469,10.0,23.275,23.254,10.0]
[1674243813701,10.0,23.275,23.236,10.0]
[1674243813702,10.0,23.273,23.243,32.28]
[1674243813914,32.23,23.272,23.241,42.28]
[1674243814108,49.23,23.272,23.241,42.28]
[1674243814324,10.96,23.271,23.241,42.28]
[1674243814521,32.24,23.27,23.241,42.28]
[1674243814734,10.0,23.269,23.25,23.38]
[1674243814964,10.0,23.269,23.251,10.0]
[1674243815175,10.0,23.269,23.251,27.0]
[1674243815697,10.0,23.269,23.252,20.0]
[1674243816012,10.0,23.269,23.253,17.0]
[1674243816327,10.0,23.269,23.254,30.0]
[1674243816528,10.0,23.269,23.255,17.0]
[1674243816750,114.5184,23.271,23.256,10.0]
[1674243816945,42.22,23.28,23.257,17.0]
[1674243817149,110.9057,23.276,23.26,23.57]
[1674243817375,110.9057,23.276,23.261,17.0]
[1674243817779,110.9057,23.276,23.26,23.57]
[1674243817989,110.9057,23.276,23.256,10.0]
[1674243818225,110.9057,23.276,23.257,17.0]
[1674243818409,10.0,23.275,23.257,17.0]
[1674243819576,110.9057,23.276,23.258,10.0]
[1674243819786,110.9057,23.276,23.26,23.56]
[1674243819990,110.9057,23.276,23.261,20.96]
[1674243820317,10.0,23.275,23.262,10.0]
[1674243820520,110.9057,23.276,23.263,37.96]
[1674243820940,10.0,23.275,23.263,37.0]
[1674243821161,10.0,23.275,23.255,32.26]
[1674243821359,110.9057,23.276,23.254,10.0]
[1674243821561,110.9057,23.276,23.26,23.57]
[1674243821998,10.0,23.275,23.26,23.57]
[1674243822607,10.0,23.275,23.262,10.0]
[1674243822826,10.0,23.275,23.263,20.0]